[Event "Late-Titled-Tuesday-Blitz-September-19-2023"]
[Site "Chess.com"]
[Date "2023.09.19"]
[Round "9"]
[White "ritanovikova"]
[Black "IMRosen"]
[Result "0-1"]
[WhiteElo "2155"]
[BlackElo "2547"]
[TimeControl "180+1"]
[EndTime "15:43:57 PDT"]
[Termination "IMRosen won on time"]

1. d4 {[%clk 0:03:00]} 1... Nf6 {[%clk 0:02:51.7]} 2. Bf4 {[%clk 0:02:59.4]}
2... c5 {[%clk 0:02:46]} 3. e3 {[%clk 0:02:57.7]} 3... d5 {[%clk 0:02:26.7]} 4.
c3 {[%clk 0:02:52.6]} 4... Nc6 {[%clk 0:02:24.1]} 5. Nf3 {[%clk 0:02:50.8]} 5...
Qb6 {[%clk 0:02:23.9]} 6. Qb3 {[%clk 0:02:49.2]} 6... c4 {[%clk 0:02:24.1]} 7.
Qxb6 {[%clk 0:02:48.6]} 7... axb6 {[%clk 0:02:25]} 8. Nbd2 {[%clk 0:02:48.1]}
8... b5 {[%clk 0:02:21.9]} 9. e4 {[%clk 0:02:39.6]} 9... dxe4 {[%clk 0:02:19.8]}
10. Ng5 {[%clk 0:02:38.8]} 10... Bf5 {[%clk 0:02:17.1]} 11. b3 {[%clk
0:01:42.4]} 11... h6 {[%clk 0:02:12.6]} 12. Nh3 {[%clk 0:01:36.3]} 12... cxb3
{[%clk 0:02:12.4]} 13. Nxb3 {[%clk 0:01:34.7]} 13... b4 {[%clk 0:01:47.9]} 14.
cxb4 {[%clk 0:01:05.2]} 14... Nxb4 {[%clk 0:01:37.4]} 15. Bb5+ {[%clk
0:01:04.5]} 15... Bd7 {[%clk 0:01:34.4]} 16. Bxd7+ {[%clk 0:01:03.7]} 16... Nxd7
{[%clk 0:01:35.3]} 17. O-O {[%clk 0:00:55.3]} 17... g5 {[%clk 0:01:34.6]} 18.
Bd2 {[%clk 0:00:50.6]} 18... Nd5 {[%clk 0:01:31.4]} 19. Rfe1 {[%clk 0:00:39]}
19... f5 {[%clk 0:01:18.6]} 20. f3 {[%clk 0:00:38.5]} 20... exf3 {[%clk
0:01:05.8]} 21. gxf3 {[%clk 0:00:38.2]} 21... Bg7 {[%clk 0:01:06.2]} 22. Kg2
{[%clk 0:00:27.3]} 22... Kf7 {[%clk 0:00:59.6]} 23. Nf2 {[%clk 0:00:26.7]} 23...
Rhc8 {[%clk 0:00:56]} 24. Nd3 {[%clk 0:00:21.9]} 24... Rc2 {[%clk 0:00:52.1]}
25. Re2 {[%clk 0:00:13.8]} 25... Raxa2 {[%clk 0:00:49.9]} 26. Rxa2 {[%clk
0:00:13.5]} 26... Rxa2 {[%clk 0:00:48.9]} 27. Ne5+ {[%clk 0:00:11]} 27... Nxe5
{[%clk 0:00:45.7]} 28. dxe5 {[%clk 0:00:11.8]} 28... Nf4+ {[%clk 0:00:46.2]} 29.
Bxf4 {[%clk 0:00:10.2]} 29... Rxe2+ {[%clk 0:00:45.9]} 30. Kf1 {[%clk
0:00:10.7]} 30... Rb2 {[%clk 0:00:46.1]} 31. e6+ {[%clk 0:00:08.8]} 31... Kg6
{[%clk 0:00:37.9]} 0-1

[Event "Late-Titled-Tuesday-Blitz-September-19-2023"]
[Site "Chess.com"]
[Date "2023.09.19"]
[Round "9"]
[White "IMSlavin"]
[Black "Chessbard1972"]
[Result "0-1"]
[WhiteElo "2291"]
[BlackElo "2373"]
[TimeControl "180+1"]
[EndTime "15:44:00 PDT"]
[Termination "Chessbard1972 won by checkmate"]

1. e4 {[%clk 0:02:59.7]} 1... e5 {[%clk 0:02:59.2]} 2. Nf3 {[%clk 0:02:59.6]}
2... Nc6 {[%clk 0:02:59.4]} 3. c3 {[%clk 0:03:00.2]} 3... Bc5 {[%clk 0:02:54.5]}
4. d4 {[%clk 0:02:59.4]} 4... exd4 {[%clk 0:02:53.9]} 5. cxd4 {[%clk 0:02:59.4]}
5... Bb4+ {[%clk 0:02:54.3]} 6. Nc3 {[%clk 0:02:59.4]} 6... d6 {[%clk
0:02:52.3]} 7. h3 {[%clk 0:02:55.4]} 7... Nge7 {[%clk 0:02:48.5]} 8. a3 {[%clk
0:02:49.1]} 8... Ba5 {[%clk 0:02:46.4]} 9. Be3 {[%clk 0:02:45.7]} 9... O-O
{[%clk 0:02:44.3]} 10. Bd3 {[%clk 0:02:42.3]} 10... Ng6 {[%clk 0:02:41.8]} 11.
O-O {[%clk 0:02:40.7]} 11... f5 {[%clk 0:02:34.7]} 12. b4 {[%clk 0:02:28.5]}
12... Bb6 {[%clk 0:02:33.8]} 13. Nd5 {[%clk 0:02:25.7]} 13... fxe4 {[%clk
0:02:26.7]} 14. Bxe4 {[%clk 0:02:25.9]} 14... Bf5 {[%clk 0:02:25.8]} 15. Bxf5
{[%clk 0:02:16.7]} 15... Rxf5 {[%clk 0:02:25]} 16. Nxb6 {[%clk 0:02:02.2]} 16...
axb6 {[%clk 0:02:23.4]} 17. Re1 {[%clk 0:01:58.3]} 17... d5 {[%clk 0:02:16.6]}
18. Qd3 {[%clk 0:01:56.5]} 18... Qf6 {[%clk 0:02:12]} 19. Rac1 {[%clk
0:01:50.4]} 19... Rxf3 {[%clk 0:02:01.5]} 20. gxf3 {[%clk 0:01:50.1]} 20... Qxf3
{[%clk 0:02:00.3]} 21. Qf1 {[%clk 0:01:39.9]} 21... Nh4 {[%clk 0:01:55.6]} 22.
b5 {[%clk 0:01:36.6]} 22... Nd8 {[%clk 0:01:37.3]} 23. Rxc7 {[%clk 0:01:34.6]}
23... Ne6 {[%clk 0:01:36.8]} 24. Re7 {[%clk 0:01:27.5]} 24... Qf6 {[%clk
0:01:32.7]} 25. Rxb7 {[%clk 0:01:20.8]} 25... Nf3+ {[%clk 0:01:27.5]} 26. Kg2
{[%clk 0:01:15]} 26... Nxe1+ {[%clk 0:01:26.4]} 27. Qxe1 {[%clk 0:01:14.9]}
27... Re8 {[%clk 0:01:18.8]} 28. Qb4 {[%clk 0:01:04.9]} 28... Nf4+ {[%clk
0:01:09.9]} 29. Kh2 {[%clk 0:00:18]} 29... Qf5 {[%clk 0:01:01.5]} 30. Kg3 {[%clk
0:00:16.6]} 30... Qxh3+ {[%clk 0:00:45.8]} 31. Kxf4 {[%clk 0:00:16]} 31... Re4+
{[%clk 0:00:45.9]} 32. Kg5 {[%clk 0:00:14.1]} 32... h6+ {[%clk 0:00:40]} 33. Kg6
{[%clk 0:00:12.1]} 33... Qg4+ {[%clk 0:00:37.1]} 34. Bg5 {[%clk 0:00:10.6]}
34... Qxg5# {[%clk 0:00:37.1]} 0-1

[Event "Late-Titled-Tuesday-Blitz-September-19-2023"]
[Site "Chess.com"]
[Date "2023.09.19"]
[Round "9"]
[White "Sina_Movahed"]
[Black "Dhaydon19"]
[Result "1-0"]
[WhiteElo "2989"]
[BlackElo "2695"]
[TimeControl "180+1"]
[EndTime "15:44:01 PDT"]
[Termination "Sina_Movahed won by resignation"]

1. e4 {[%clk 0:03:00.9]} 1... c6 {[%clk 0:02:59.2]} 2. d4 {[%clk 0:03:00.5]}
2... d5 {[%clk 0:02:59.8]} 3. e5 {[%clk 0:03:01.2]} 3... c5 {[%clk 0:02:56.8]}
4. c3 {[%clk 0:03:00.8]} 4... cxd4 {[%clk 0:02:56.5]} 5. cxd4 {[%clk 0:03:00.2]}
5... Nc6 {[%clk 0:02:57.1]} 6. Nc3 {[%clk 0:02:59]} 6... e6 {[%clk 0:02:54.7]}
7. Nf3 {[%clk 0:02:57.8]} 7... Nge7 {[%clk 0:02:54.1]} 8. Bd3 {[%clk 0:02:45.5]}
8... h6 {[%clk 0:02:52.3]} 9. h4 {[%clk 0:02:37.4]} 9... Nf5 {[%clk 0:02:50.4]}
10. Bxf5 {[%clk 0:02:36.5]} 10... exf5 {[%clk 0:02:50]} 11. h5 {[%clk
0:02:35.8]} 11... Be6 {[%clk 0:02:49.1]} 12. Ne2 {[%clk 0:02:34.8]} 12... Be7
{[%clk 0:02:47.9]} 13. Nf4 {[%clk 0:02:32.3]} 13... Qd7 {[%clk 0:02:46.4]} 14.
O-O {[%clk 0:02:31.3]} 14... O-O {[%clk 0:02:45.4]} 15. Bd2 {[%clk 0:02:29.7]}
15... Rfc8 {[%clk 0:02:44.7]} 16. Rc1 {[%clk 0:02:28.7]} 16... Rc7 {[%clk
0:02:43.1]} 17. a3 {[%clk 0:02:09]} 17... Rac8 {[%clk 0:02:41.5]} 18. Qe2 {[%clk
0:02:07.3]} 18... Bg5 {[%clk 0:02:37.9]} 19. b4 {[%clk 0:02:01.4]} 19... a6
{[%clk 0:02:27.9]} 20. Qd3 {[%clk 0:01:50.2]} 20... Be7 {[%clk 0:02:19.6]} 21.
Nh2 {[%clk 0:01:36.9]} 21... Bg5 {[%clk 0:02:13.4]} 22. Nf3 {[%clk 0:01:34.8]}
22... Be7 {[%clk 0:02:12.4]} 23. Rb1 {[%clk 0:01:31]} 23... Na7 {[%clk
0:02:11.3]} 24. Nh2 {[%clk 0:01:25.9]} 24... Qa4 {[%clk 0:02:09.3]} 25. Qg3
{[%clk 0:01:23.8]} 25... Qd7 {[%clk 0:01:51.1]} 26. Nd3 {[%clk 0:01:23]} 26...
Kh7 {[%clk 0:01:47]} 27. Nc5 {[%clk 0:01:23]} 27... Qe8 {[%clk 0:01:42.9]} 28.
Rfe1 {[%clk 0:01:02.6]} 28... Nb5 {[%clk 0:01:42.1]} 29. Qd3 {[%clk 0:01:00.4]}
29... b6 {[%clk 0:01:40.4]} 30. Nxe6 {[%clk 0:00:55.9]} 30... fxe6 {[%clk
0:01:38]} 31. a4 {[%clk 0:00:56.8]} 31... Nc3 {[%clk 0:01:33.6]} 32. Bxc3 {[%clk
0:00:53.7]} 32... Rxc3 {[%clk 0:01:33.7]} 33. Qxa6 {[%clk 0:00:54.4]} 33... Ra8
{[%clk 0:01:30.3]} 34. Qxb6 {[%clk 0:00:52.5]} 34... Rxa4 {[%clk 0:01:30.1]} 35.
Qxe6 {[%clk 0:00:52.2]} 35... Qf8 {[%clk 0:01:22]} 36. b5 {[%clk 0:00:49.6]}
36... Ra2 {[%clk 0:01:16.4]} 37. b6 {[%clk 0:00:47.7]} 37... Bd8 {[%clk
0:01:14.9]} 38. b7 {[%clk 0:00:47.7]} 38... Bc7 {[%clk 0:01:14.9]} 39. Nf3
{[%clk 0:00:42.6]} 39... Rcc2 {[%clk 0:01:13.6]} 40. Rec1 {[%clk 0:00:40]} 40...
Bb8 {[%clk 0:00:57.7]} 41. Rxc2 {[%clk 0:00:37]} 41... Rxc2 {[%clk 0:00:58.2]}
42. Qxd5 {[%clk 0:00:37.6]} 42... Qe8 {[%clk 0:00:57.4]} 43. e6 {[%clk
0:00:30.2]} 43... Qxh5 {[%clk 0:00:54.6]} 44. Re1 {[%clk 0:00:30.8]} 44... Qe8
{[%clk 0:00:41.1]} 45. Qxf5+ {[%clk 0:00:29.6]} 45... Kg8 {[%clk 0:00:39.9]} 46.
Qxc2 {[%clk 0:00:29]} 1-0

[Event "Late-Titled-Tuesday-Blitz-September-19-2023"]
[Site "Chess.com"]
[Date "2023.09.19"]
[Round "9"]
[White "Inepton_Fermion"]
[Black "Miguelitro69"]
[Result "0-1"]
[WhiteElo "2353"]
[BlackElo "2301"]
[TimeControl "180+1"]
[EndTime "15:44:08 PDT"]
[Termination "Miguelitro69 won by checkmate"]

1. Nf3 {[%clk 0:02:50.8]} 1... c5 {[%clk 0:02:58.9]} 2. b3 {[%clk 0:02:49.2]}
2... Nc6 {[%clk 0:02:54.2]} 3. Bb2 {[%clk 0:02:49]} 3... Nf6 {[%clk 0:02:54.7]}
4. c4 {[%clk 0:02:47.1]} 4... g6 {[%clk 0:02:52.8]} 5. g3 {[%clk 0:02:45.4]}
5... Bg7 {[%clk 0:02:52.5]} 6. Bg2 {[%clk 0:02:46.1]} 6... O-O {[%clk
0:02:52.7]} 7. O-O {[%clk 0:02:46.6]} 7... d6 {[%clk 0:02:41.5]} 8. d4 {[%clk
0:02:45.3]} 8... Bg4 {[%clk 0:02:32.9]} 9. Nbd2 {[%clk 0:02:17.8]} 9... cxd4
{[%clk 0:02:11.3]} 10. Nxd4 {[%clk 0:02:18.7]} 10... Qd7 {[%clk 0:02:11.5]} 11.
Re1 {[%clk 0:02:08]} 11... d5 {[%clk 0:02:02.5]} 12. Nxc6 {[%clk 0:01:50.8]}
12... bxc6 {[%clk 0:01:59.3]} 13. cxd5 {[%clk 0:01:41.8]} 13... cxd5 {[%clk
0:01:58.8]} 14. Nf3 {[%clk 0:01:42]} 14... Bh3 {[%clk 0:01:49.2]} 15. Ne5 {[%clk
0:01:38.9]} 15... Qe6 {[%clk 0:01:48.5]} 16. Nd3 {[%clk 0:01:18.4]} 16... Bxg2
{[%clk 0:01:45.6]} 17. Kxg2 {[%clk 0:01:19.3]} 17... Rac8 {[%clk 0:01:38.7]} 18.
Rc1 {[%clk 0:01:15.1]} 18... Qe4+ {[%clk 0:01:31.5]} 19. Kg1 {[%clk 0:01:05.8]}
19... Rxc1 {[%clk 0:01:22.6]} 20. Qxc1 {[%clk 0:01:05.8]} 20... d4 {[%clk
0:01:13.2]} 21. Qc4 {[%clk 0:00:32.1]} 21... e5 {[%clk 0:01:00.1]} 22. h3 {[%clk
0:00:17.6]} 22... h5 {[%clk 0:00:50.2]} 23. Nc5 {[%clk 0:00:14.1]} 23... Qf5
{[%clk 0:00:47.7]} 24. Kg2 {[%clk 0:00:10]} 24... h4 {[%clk 0:00:45.5]} 25. Qd3
{[%clk 0:00:06.6]} 25... Qc8 {[%clk 0:00:32.4]} 26. Rc1 {[%clk 0:00:05.7]} 26...
hxg3 {[%clk 0:00:30.9]} 27. fxg3 {[%clk 0:00:05.4]} 27... Qa8+ {[%clk
0:00:25.8]} 28. Kh2 {[%clk 0:00:05.7]} 28... Nd5 {[%clk 0:00:20.5]} 29. Ne4
{[%clk 0:00:03.7]} 29... Ne3 {[%clk 0:00:19.7]} 30. Rc7 {[%clk 0:00:02.4]} 30...
f5 {[%clk 0:00:18.4]} 31. Ng5 {[%clk 0:00:02.3]} 31... Qg2# {[%clk 0:00:16.9]}
0-1

[Event "Late-Titled-Tuesday-Blitz-September-19-2023"]
[Site "Chess.com"]
[Date "2023.09.19"]
[Round "9"]
[White "Beca95"]
[Black "cassoulet"]
[Result "1-0"]
[WhiteElo "2857"]
[BlackElo "2768"]
[TimeControl "180+1"]
[EndTime "15:44:21 PDT"]
[Termination "Beca95 won by checkmate"]

1. d4 {[%clk 0:02:53.3]} 1... Nf6 {[%clk 0:02:59.6]} 2. Bg5 {[%clk 0:02:51.8]}
2... g6 {[%clk 0:02:58.3]} 3. Bxf6 {[%clk 0:02:50.5]} 3... exf6 {[%clk
0:02:59.2]} 4. e3 {[%clk 0:02:49.8]} 4... Bg7 {[%clk 0:02:59.5]} 5. g3 {[%clk
0:02:48.3]} 5... f5 {[%clk 0:03:00]} 6. c4 {[%clk 0:02:47.3]} 6... d5 {[%clk
0:02:58.7]} 7. b3 {[%clk 0:02:38.7]} 7... dxc4 {[%clk 0:02:58.2]} 8. bxc4 {[%clk
0:02:37.7]} 8... c5 {[%clk 0:02:58.6]} 9. Ne2 {[%clk 0:02:30.7]} 9... Nc6 {[%clk
0:02:57]} 10. Bg2 {[%clk 0:02:30.1]} 10... cxd4 {[%clk 0:02:53.1]} 11. Bxc6+
{[%clk 0:02:29.2]} 11... bxc6 {[%clk 0:02:54]} 12. exd4 {[%clk 0:02:28.9]} 12...
O-O {[%clk 0:02:45.9]} 13. Nbc3 {[%clk 0:02:27.8]} 13... f4 {[%clk 0:02:32.2]}
14. gxf4 {[%clk 0:02:26.7]} 14... Bg4 {[%clk 0:02:20]} 15. Qd3 {[%clk
0:02:19.8]} 15... c5 {[%clk 0:01:48.6]} 16. d5 {[%clk 0:01:48]} 16... Re8 {[%clk
0:01:37]} 17. f3 {[%clk 0:01:33.3]} 17... Qh4+ {[%clk 0:01:25.1]} 18. Kd2 {[%clk
0:01:31.6]} 18... Bf5 {[%clk 0:01:24.6]} 19. Ne4 {[%clk 0:01:31]} 19... Bxa1
{[%clk 0:01:20.2]} 20. Rxa1 {[%clk 0:01:31.2]} 20... Rab8 {[%clk 0:01:14.5]} 21.
Rb1 {[%clk 0:01:28.4]} 21... Qe7 {[%clk 0:00:54.1]} 22. N2g3 {[%clk 0:01:20.7]}
22... Bd7 {[%clk 0:00:48.8]} 23. d6 {[%clk 0:01:09]} 23... Qh4 {[%clk 0:00:46]}
24. Rxb8 {[%clk 0:00:59.3]} 24... Qxf4+ {[%clk 0:00:42.6]} 25. Qe3 {[%clk
0:00:57.6]} 25... Qxe3+ {[%clk 0:00:32.9]} 26. Kxe3 {[%clk 0:00:58.5]} 26...
Rxb8 {[%clk 0:00:33]} 27. Nf6+ {[%clk 0:00:58.7]} 27... Kg7 {[%clk 0:00:33.5]}
28. Nxd7 {[%clk 0:00:58.9]} 28... Rd8 {[%clk 0:00:34.1]} 29. Nxc5 {[%clk
0:00:58.9]} 29... Rxd6 {[%clk 0:00:34.7]} 30. Nge4 {[%clk 0:00:57.3]} 30... Rc6
{[%clk 0:00:34.8]} 31. Kd4 {[%clk 0:00:57.5]} 31... f5 {[%clk 0:00:34.9]} 32.
Nc3 {[%clk 0:00:57.5]} 32... g5 {[%clk 0:00:29.7]} 33. Nd3 {[%clk 0:00:34.1]}
33... Rh6 {[%clk 0:00:29]} 34. c5 {[%clk 0:00:34.6]} 34... Kf7 {[%clk
0:00:27.3]} 35. c6 {[%clk 0:00:33.4]} 35... Ke7 {[%clk 0:00:24.4]} 36. Ne5
{[%clk 0:00:32]} 36... Rh4+ {[%clk 0:00:21.3]} 37. Kc5 {[%clk 0:00:30.9]} 37...
Kd8 {[%clk 0:00:14.7]} 38. Nf7+ {[%clk 0:00:20.6]} 38... Kc8 {[%clk 0:00:13]}
39. Nd5 {[%clk 0:00:18.9]} 39... Rxh2 {[%clk 0:00:10.7]} 40. Nd6+ {[%clk
0:00:19.3]} 40... Kd8 {[%clk 0:00:09.6]} 41. c7+ {[%clk 0:00:19.9]} 41... Kd7
{[%clk 0:00:09.7]} 42. c8=Q# {[%clk 0:00:19.9]} 1-0

[Event "Late-Titled-Tuesday-Blitz-September-19-2023"]
[Site "Chess.com"]
[Date "2023.09.19"]
[Round "9"]
[White "Msb2"]
[Black "Oleksandr_Bortnyk"]
[Result "1-0"]
[WhiteElo "3102"]
[BlackElo "3011"]
[TimeControl "180+1"]
[EndTime "15:44:23 PDT"]
[Termination "Msb2 won by checkmate"]

1. d4 {[%clk 0:03:00.9]} 1... d6 {[%clk 0:02:58.2]} 2. Nf3 {[%clk 0:03:00.9]}
2... Nf6 {[%clk 0:02:58.2]} 3. c4 {[%clk 0:03:01.4]} 3... g6 {[%clk 0:02:58.6]}
4. Nc3 {[%clk 0:03:02.2]} 4... Bg7 {[%clk 0:02:58.4]} 5. e4 {[%clk 0:03:02.3]}
5... O-O {[%clk 0:02:58.8]} 6. Be2 {[%clk 0:03:03.1]} 6... Nbd7 {[%clk
0:02:59.5]} 7. O-O {[%clk 0:03:03]} 7... e5 {[%clk 0:03:00.2]} 8. Be3 {[%clk
0:03:03.7]} 8... Qe7 {[%clk 0:02:58.9]} 9. Qc2 {[%clk 0:03:04.3]} 9... c6 {[%clk
0:02:58.2]} 10. Rad1 {[%clk 0:03:04.4]} 10... exd4 {[%clk 0:02:57.3]} 11. Nxd4
{[%clk 0:03:05.3]} 11... Re8 {[%clk 0:02:57.6]} 12. f3 {[%clk 0:03:05.7]} 12...
d5 {[%clk 0:02:57.1]} 13. cxd5 {[%clk 0:03:01.8]} 13... cxd5 {[%clk 0:02:58]}
14. Ndb5 {[%clk 0:02:59.1]} 14... dxe4 {[%clk 0:02:56]} 15. f4 {[%clk
0:02:53.9]} 15... Nb6 {[%clk 0:02:44]} 16. Nxa7 {[%clk 0:02:25.1]} 16... Rxa7
{[%clk 0:02:27.5]} 17. Bxb6 {[%clk 0:02:25.2]} 17... Ra8 {[%clk 0:02:28.4]} 18.
Nb5 {[%clk 0:02:20.3]} 18... Bg4 {[%clk 0:02:10.6]} 19. Bxg4 {[%clk 0:02:10.3]}
19... Nxg4 {[%clk 0:02:09]} 20. Nc7 {[%clk 0:02:10.7]} 20... Rec8 {[%clk
0:01:46.1]} 21. Qe2 {[%clk 0:02:09.5]} 21... Rxa2 {[%clk 0:01:16.2]} 22. Qxg4
{[%clk 0:02:06.4]} 22... f5 {[%clk 0:01:16.9]} 23. Qg3 {[%clk 0:01:46.8]} 23...
Rxb2 {[%clk 0:01:12.3]} 24. Nd5 {[%clk 0:01:45.5]} 24... Qe6 {[%clk 0:01:08.6]}
25. Bd4 {[%clk 0:01:34.7]} 25... Bxd4+ {[%clk 0:00:57.9]} 26. Rxd4 {[%clk
0:01:35.6]} 26... Rcc2 {[%clk 0:00:37.1]} 27. Ne3 {[%clk 0:01:35.8]} 27... Rd2
{[%clk 0:00:37.2]} 28. Rxd2 {[%clk 0:01:32.2]} 28... Rxd2 {[%clk 0:00:38.1]} 29.
h3 {[%clk 0:01:23]} 29... Qb6 {[%clk 0:00:33.5]} 30. Kh2 {[%clk 0:01:19.9]}
30... Rd3 {[%clk 0:00:33.4]} 31. Re1 {[%clk 0:01:19.8]} 31... Qc5 {[%clk
0:00:31.5]} 32. Qf2 {[%clk 0:01:14.6]} 32... Kf8 {[%clk 0:00:31.1]} 33. Qb2
{[%clk 0:00:52.1]} 33... Rxe3 {[%clk 0:00:26.5]} 34. Rc1 {[%clk 0:00:52.2]}
34... Qd6 {[%clk 0:00:18.4]} 35. Rc8+ {[%clk 0:00:42.3]} 35... Kf7 {[%clk
0:00:10.5]} 36. Qxb7+ {[%clk 0:00:42.5]} 36... Kf6 {[%clk 0:00:10.9]} 37. Rc6
{[%clk 0:00:43.1]} 37... Rd3 {[%clk 0:00:10.9]} 38. Rxd6+ {[%clk 0:00:42.5]}
38... Rxd6 {[%clk 0:00:11.8]} 39. Qxh7 {[%clk 0:00:42.9]} 39... Re6 {[%clk
0:00:11.8]} 40. Qg8 {[%clk 0:00:42.2]} 40... Re7 {[%clk 0:00:09.5]} 41. Qf8+
{[%clk 0:00:41.6]} 41... Ke6 {[%clk 0:00:10]} 42. Qd8 {[%clk 0:00:39.6]} 42...
e3 {[%clk 0:00:09.5]} 43. Kg1 {[%clk 0:00:37.4]} 43... Kf7 {[%clk 0:00:04.5]}
44. Kf1 {[%clk 0:00:37.2]} 44... e2+ {[%clk 0:00:04.1]} 45. Ke1 {[%clk
0:00:37.8]} 45... Re4 {[%clk 0:00:05]} 46. Qd7+ {[%clk 0:00:37.9]} 46... Kf6
{[%clk 0:00:04.6]} 47. Qd6+ {[%clk 0:00:38.5]} 47... Re6 {[%clk 0:00:01.8]} 48.
Qf8# {[%clk 0:00:38.1]} 1-0

[Event "Late-Titled-Tuesday-Blitz-September-19-2023"]
[Site "Chess.com"]
[Date "2023.09.19"]
[Round "9"]
[White "FrancescoSorcinelli"]
[Black "AlexNovitz"]
[Result "1-0"]
[WhiteElo "2148"]
[BlackElo "2227"]
[TimeControl "180+1"]
[EndTime "15:44:28 PDT"]
[Termination "FrancescoSorcinelli won on time"]

1. Nf3 {[%clk 0:02:25.6]} 1... c5 {[%clk 0:02:55.8]} 2. e4 {[%clk 0:02:25.3]}
2... Nc6 {[%clk 0:02:50.7]} 3. Bb5 {[%clk 0:02:25.4]} 3... d6 {[%clk 0:02:48.4]}
4. O-O {[%clk 0:02:25]} 4... e5 {[%clk 0:02:46.5]} 5. c3 {[%clk 0:02:24.4]} 5...
Ne7 {[%clk 0:02:43.1]} 6. d4 {[%clk 0:02:24]} 6... Bd7 {[%clk 0:02:39]} 7. d5
{[%clk 0:02:20.2]} 7... Nb8 {[%clk 0:02:37.7]} 8. Bxd7+ {[%clk 0:02:21.1]} 8...
Nxd7 {[%clk 0:02:37.7]} 9. c4 {[%clk 0:02:21.8]} 9... g6 {[%clk 0:02:37.1]} 10.
Nc3 {[%clk 0:02:21.8]} 10... Bg7 {[%clk 0:02:37.7]} 11. Bg5 {[%clk 0:02:05.2]}
11... a6 {[%clk 0:02:30.4]} 12. Rb1 {[%clk 0:02:04.6]} 12... O-O {[%clk
0:02:25.2]} 13. a3 {[%clk 0:02:04.7]} 13... h6 {[%clk 0:02:12.6]} 14. Bxe7
{[%clk 0:02:04.1]} 14... Qxe7 {[%clk 0:02:09.7]} 15. b4 {[%clk 0:02:05]} 15...
f5 {[%clk 0:02:03.1]} 16. Nd2 {[%clk 0:01:26.2]} 16... Rac8 {[%clk 0:01:48.1]}
17. Qe2 {[%clk 0:01:13.9]} 17... f4 {[%clk 0:01:22.2]} 18. f3 {[%clk 0:01:09.3]}
18... g5 {[%clk 0:01:22.2]} 19. Nb3 {[%clk 0:01:04.6]} 19... h5 {[%clk 0:01:16]}
20. b5 {[%clk 0:00:45.8]} 20... Bh6 {[%clk 0:00:59]} 21. bxa6 {[%clk 0:00:44.8]}
21... bxa6 {[%clk 0:00:58.6]} 22. Na5 {[%clk 0:00:45.4]} 22... Qg7 {[%clk
0:00:47.4]} 23. Nc6 {[%clk 0:00:42.4]} 23... Nf6 {[%clk 0:00:39.1]} 24. Rb6
{[%clk 0:00:35]} 24... g4 {[%clk 0:00:37.7]} 25. Rfb1 {[%clk 0:00:35]} 25... Rc7
{[%clk 0:00:30.2]} 26. Rb8 {[%clk 0:00:27.6]} 26... Rxb8 {[%clk 0:00:24.2]} 27.
Rxb8+ {[%clk 0:00:26.9]} 27... Kh7 {[%clk 0:00:24.8]} 28. Nd1 {[%clk 0:00:15.7]}
28... h4 {[%clk 0:00:22.4]} 29. Nf2 {[%clk 0:00:12.2]} 29... h3 {[%clk
0:00:15.5]} 30. fxg4 {[%clk 0:00:10.8]} 30... hxg2 {[%clk 0:00:14]} 31. Nd8
{[%clk 0:00:09.1]} 31... Re7 {[%clk 0:00:02.4]} 32. Ne6 {[%clk 0:00:09.2]} 32...
Rxe6 {[%clk 0:00:01.6]} 33. dxe6 {[%clk 0:00:10.1]} 33... Qg5 {[%clk 0:00:01.8]}
34. Qf3 {[%clk 0:00:10.2]} 34... Qh4 {[%clk 0:00:01.8]} 35. Rb7+ {[%clk
0:00:10.5]} 35... Kg6 {[%clk 0:00:01.7]} 36. Nh3 {[%clk 0:00:10.9]} 1-0

[Event "Late-Titled-Tuesday-Blitz-September-19-2023"]
[Site "Chess.com"]
[Date "2023.09.19"]
[Round "9"]
[White "Jarming"]
[Black "Mikhail_Golubev"]
[Result "1-0"]
[WhiteElo "2733"]
[BlackElo "2583"]
[TimeControl "180+1"]
[EndTime "15:44:29 PDT"]
[Termination "Jarming won on time"]

1. c4 {[%clk 0:02:56.9]} 1... g6 {[%clk 0:02:59.5]} 2. g3 {[%clk 0:02:57.3]}
2... Bg7 {[%clk 0:02:59.8]} 3. Bg2 {[%clk 0:02:58.2]} 3... e5 {[%clk 0:02:59.9]}
4. Nc3 {[%clk 0:02:57.2]} 4... Nc6 {[%clk 0:02:59.9]} 5. Nf3 {[%clk 0:02:56.8]}
5... d6 {[%clk 0:02:58.4]} 6. d3 {[%clk 0:02:57.7]} 6... f5 {[%clk 0:02:56.5]}
7. Rb1 {[%clk 0:02:57.8]} 7... h6 {[%clk 0:02:53.2]} 8. Nd2 {[%clk 0:02:50.4]}
8... Nf6 {[%clk 0:02:45.8]} 9. b4 {[%clk 0:02:48.3]} 9... a6 {[%clk 0:02:45.5]}
10. a4 {[%clk 0:02:47.7]} 10... O-O {[%clk 0:02:44.7]} 11. b5 {[%clk 0:02:47.1]}
11... axb5 {[%clk 0:02:44.8]} 12. axb5 {[%clk 0:02:48]} 12... Ne7 {[%clk
0:02:44.9]} 13. Bb2 {[%clk 0:02:46.1]} 13... g5 {[%clk 0:02:41.7]} 14. e3 {[%clk
0:02:45.8]} 14... f4 {[%clk 0:02:29.6]} 15. exf4 {[%clk 0:02:44.8]} 15... gxf4
{[%clk 0:02:11.3]} 16. O-O {[%clk 0:02:43.4]} 16... Nf5 {[%clk 0:02:03.8]} 17.
Re1 {[%clk 0:02:38]} 17... Nd4 {[%clk 0:01:59.4]} 18. Nd5 {[%clk 0:02:30.1]}
18... fxg3 {[%clk 0:01:49.4]} 19. hxg3 {[%clk 0:02:26.3]} 19... Ng4 {[%clk
0:01:46.2]} 20. Bxd4 {[%clk 0:02:24.9]} 20... exd4 {[%clk 0:01:46.1]} 21. Re2
{[%clk 0:02:15.4]} 21... Qg5 {[%clk 0:01:31.6]} 22. Nf3 {[%clk 0:01:53.1]} 22...
Qh5 {[%clk 0:00:56.1]} 23. Nf4 {[%clk 0:01:52]} 23... Rxf4 {[%clk 0:00:42.5]}
24. gxf4 {[%clk 0:01:52.9]} 24... Bf5 {[%clk 0:00:41.8]} 25. Ra1 {[%clk
0:01:32.4]} 25... Rf8 {[%clk 0:00:40.5]} 26. Ra7 {[%clk 0:01:20.8]} 26... Bg6
{[%clk 0:00:31.7]} 27. Qd2 {[%clk 0:01:16.4]} 27... Qf5 {[%clk 0:00:20.6]} 28.
Re4 {[%clk 0:01:02.7]} 28... Qf6 {[%clk 0:00:16.4]} 29. Rxd4 {[%clk 0:00:56.2]}
29... Qe7 {[%clk 0:00:12.6]} 30. Rd5 {[%clk 0:00:46]} 30... h5 {[%clk
0:00:11.1]} 31. Rxb7 {[%clk 0:00:44.3]} 31... Bh6 {[%clk 0:00:10.8]} 32. Qe1
{[%clk 0:00:38.3]} 32... Qf6 {[%clk 0:00:09.2]} 33. Rxc7 {[%clk 0:00:33.9]}
33... Bxf4 {[%clk 0:00:09.3]} 34. b6 {[%clk 0:00:20.2]} 34... Bf7 {[%clk
0:00:05.1]} 35. b7 {[%clk 0:00:19.8]} 35... Bxd5 {[%clk 0:00:05.1]} 36. cxd5
{[%clk 0:00:20.7]} 36... Qb2 {[%clk 0:00:04.4]} 37. Qe6+ {[%clk 0:00:19.1]}
37... Kh8 {[%clk 0:00:03.6]} 38. Rc8 {[%clk 0:00:18.4]} 38... Qxf2+ {[%clk
0:00:02.3]} 39. Kh1 {[%clk 0:00:18.1]} 1-0